Workbook

Sheet Opening Document
B2: UPON OPENING DOCUMENT…
B27: IF THE RED BANNER OCCURS….
B39: 1. DOWNLOAD DOCUMENT AND SAVE TO DESKTOP
B40: 2. RIGHT CLICK, PROPERTIES
B53: 3. CHECK OFF UNBLOCK, CLICK APPLY, CLICK OK
B54: 4. REOPEN EXCEL WORKBOOK
B55: 5. IF NEEDED, ENABLE EDITING, ENABLE CONTENT

Sheet Budget Summary
A2: Attachment A - Budget Worksheets
A19: FY2024 Emerging Adults Reentry Initiative Technical Assistance Provider
A21: Cost Categories | C21: Total
A24: Personnel Costs | C24: ='Budget Detail'!E14 -> 0
A26: Fringe Costs | C26: ='Budget Detail'!E24 -> 0
A28: Consultants/Contractors Costs | C28: ='Budget Detail'!E34 -> 0
A30: Equipment Costs | C30: ='Budget Detail'!E44 -> 0
A32: Travel Costs | C32: ='Budget Detail'!E54 -> 0
A34: Supplies Costs | C34: ='Budget Detail'!E64 -> 0
A36: Other Costs | C36: ='Budget Detail'!E74 -> 0
A38: Indirect Costs | C38: ='Budget Detail'!E84 -> 0
A40: Total Costs | C40: ='Budget Detail'!E86 -> 0
A43: Name of Applicant Organization

Sheet Budget Detail
A1: Executive Office of Public Safety and Security
A2: Office of Grants and Research
A3: Justice & Prevention Division
A4: =CONCATENATE("Budget Worksheets - ",'Budget Summary'!B43) -> Budget Worksheets -
A6: INSTRUCTIONS: This is a macro-enabled document. Please make sure that you have enabled macros when prompted upon opening this document. The items marked as Example are only examples, and do not necessarily reflect items in your requested budget. Please note that the subtotals will auto-populate based on the numbers reported within each category. Your requested budget per cost category shall be entered in the rows below the Examples using the "Add" command button to add another row if needed. If you have any questions, please contact your grant manager.
A7: PERSONNEL: Full or part-time regular salaried employees working on the grant. Job descriptions and/or titles must be included in the description.
A9: Employee Name | B9: Pay Rate | C9: Quantity | D9: Description | E9: Total Cash Expenditures
A10: Example: Sue Smith | B10: 23.4875 | C10: 300 | D10: Please describe duties of Employee here. | E10: =IF(B10="","",ROUND(ROUND(B10,4)*ROUND(C10,4),2)) -> 7046.25
A11: Example: Tracey Thomas | B11: 1730.77 | C11: 6 | D11: $1730.77 per pay period x 6 pay periods | E11: 10384.62
E13: =IF(B13="","",ROUND(ROUND(B13,4)*ROUND(C13,4),2)) -> 
A14: Subtotal: | E14: =SUM(OFFSET(Personnel,5,4):OFFSET(Fringe,-4,4)) -> 0
A17: FRINGE AND PAYROLL TAX: Eligible costs include the employer share of the following: life insurance, health insurance, social security costs, pension costs, unemployment insurance costs, workers compensation insurance, payroll taxes, FMLA. Cost amounts for direct fringe benefits can be either actual costs or rates per employee calculated by the fiscal or human resource unit in your organization (rate computations must be included). A copy of the approved rate agreement should be included with the application response. This can be either a federally approved fringe rate or a breakout of what rates are being charged per eligible cost.
A19: Employee Name | B19: Wages Applied to Fringe | C19: Contract Fringe Rate | D19: Description | E19: Total Cash Expenditures
A20: Example: Sue Smith | B20: 7046.25 | C20: 0.21 | D20: Take Sue Smith's wages reported on this worksheet under the "Personnel" section and multiply by the federally approved fringe rate or the fringe rate that was proposed and approved by OGR in the application process. ($7,046.25 * 21%) | E20: =IF(B20="","",ROUND(ROUND(B20,4)*ROUND(C20,6),2)) -> 1479.71
A21: Example: Tracey Thomas | B21: 10384.62 | C21: 0.1 | D21: Take Tracey Thomas' wages reported on this worksheet under the "Personnel" section and multiply by the breakout of what rates are being charged per eligible cost. (7.5% - health insurance, 2% - life insurance, .5% - workers compensation) | E21: =IF(B21="","",ROUND(ROUND(B21,4)*ROUND(C21,6),2)) -> 1038.46
E22: =IF(B22="","",ROUND(ROUND(B22,4)*ROUND(C22,8),2)) -> 
E23: =IF(B23="","",ROUND(ROUND(B23,4)*ROUND(C23,8),2)) -> 
A24: Subtotal: | E24: =SUM(OFFSET(Fringe,5,4):OFFSET(Contractors,-4,4)) -> 0
A27: CONTRACTORS/CONSULTANTS: List each subcontractor and/or consultant along with their rate. The maximum rate for consultants is $650 for an eight-hour day or $81.25 per hour (excluding travel and subsistence costs). Any request for compensation over $650 per day hour day or $81.25 per hour requires prior written approval by EOPSS. Requests for a waiver of this requirement, with documented justification, must be made in writing at the time of application.
A29: Contractors/Consultants Name | B29: Pay Rate | C29: Quantity | D29: Description | E29: Total Cash Expenditures
A30: Example: JJ Counseling | B30: 200 | C30: 24 | D30: Please provide the names of each Contractor and Consultant as well as duties/obligations that will be performed here. | E30: =IF(B30="","",ROUND(ROUND(B30,4)*ROUND(C30,4),2)) -> 4800
A31: Example: B & B Tech Support | B31: 45 | C31: 210 | D31: Installation of database and training; $45 per hour x 210 hours | E31: =IF(B31="","",ROUND(ROUND(B31,4)*ROUND(C31,4),2)) -> 9450
E33: =IF(B33="","",ROUND(ROUND(B33,4)*ROUND(C33,4),2)) -> 
A34: Subtotal: | E34: =SUM(OFFSET(Contractors,5,4):OFFSET(Equipment,-4,4)) -> 0
A37: EQUIPMENT: List the purchases of tangible non-expendable personal property having a useful life of more than one year. Equipment must be directly related to the program implementation. Please see the AGF for more specific Equipment guidelines.
A39: Equipment | B39: Cost | C39: Quantity | D39: Description | E39: Total Cash Expenditures
A40: Example: Laptop | B40: 1200 | C40: 1 | D40: Please describe purpose of Equipment here. | E40: =IF(B40="","",ROUND(ROUND(B40,4)*ROUND(C40,4),2)) -> 1200
A41: Example: Computer Keyboard | B41: 50 | C41: 3 | D41: Replacement keyboard, IBM part #872021. Purchased (3) keyboards at $50/each | E41: =IF(B41="","",ROUND(ROUND(B41,4)*ROUND(C41,4),2)) -> 150
E42: =IF(B42="","",ROUND(ROUND(B42,4)*ROUND(C42,4),2)) -> 
A44: Subtotal: | E44: =SUM(OFFSET(Equipment,5,4):OFFSET(Travel,-4,4)) -> 0
A47: TRAVEL: This must be travel directly related to the purpose of the grant. In-state travel costs associated with the grant shall include mileage rates not in excess of $0.62 per mile, as well as the actual costs of tolls and parking. No grant funds may be spent for out of state conference fees, out of state travel or out of state lodging without prior written approval from OGR.
A49: Employee Name | B49: Rate | C49: Quantity | D49: Description | E49: Total Cash Expenditures
A50: Example: Sue Smith | B50: 0.62 | C50: 125 | D50: Travel related to grant; $.62/mile x 125 miles | E50: =IF(B50="","",ROUND(ROUND(B50,4)*ROUND(C50,4),2)) -> 77.5
A51: Example: Tracey Thomas | B51: 0.62 | C51: 200 | D51: Travel related to DV cases; $0.62/mile x 200 miles | E51: =IF(B51="","",ROUND(ROUND(B51,4)*ROUND(C51,4),2)) -> 124
E52: =IF(B52="","",ROUND(ROUND(B52,4)*ROUND(C52,4),2)) -> 
A54: Subtotal: | E54: =SUM(OFFSET(Travel,5,4):OFFSET(Supplies,-4,4)) -> 0
A57: SUPPLIES: List the purchases of supplies required for program (pens, pencils, postage, training materials, copying paper, and other expendable items such as books, ink, etc.).
A59: Supplies/Company | B59: Cost | C59: Quantity | D59: Description | E59: Total Cash Expenditures
A60: Example: Copy Paper | B60: 50 | C60: 4 | D60: Please describe purpose of Supplies here. | E60: =IF(B60="","",ROUND(ROUND(B60,4)*ROUND(C60,4),2)) -> 200
A61: Example: ABC Office Supply | B61: 75 | C61: 1 | D61: 1 lot of office supplies (pens, staples, paperclips), $75/lot | E61: =IF(B61="","",ROUND(ROUND(B61,4)*ROUND(C61,4),2)) -> 75
E62: =IF(B62="","",ROUND(ROUND(B62,4)*ROUND(C62,4),2)) -> 
A64: Subtotal: | E64: =SUM(OFFSET(Supplies,5,4):OFFSET(Other,-4,4)) -> 0
A67: OTHER: List the purchases for other expenses not applicable in the aforementioned that were incurred due to this program implementation (e.g., telephone costs, training material costs).
A69: Item/Company | B69: Cost | C69: Quantity | D69: Description | E69: Total Cash Expenditures
A70: Example: Telephone | B70: 65 | C70: 3 | D70: Please describe purpose of item/activity here. | E70: =IF(B70="","",ROUND(ROUND(B70,4)*ROUND(C70,4),2)) -> 195
A71: Example: Heat | B71: 3200 | C71: 0.25 | D71: Total bill for office for quarter was $3,200.00; this program is 1/4 of office space | E71: =IF(B71="","",ROUND(ROUND(B71,4)*ROUND(C71,4),2)) -> 800
A74: Subtotal: | E74: =SUM(OFFSET(Other,5,4):OFFSET(Indirect,-4,4)) -> 0
A77: INDIRECT: Applicants may charge indirect costs through the use of an indirect cost rate that has been federally-approved. Please include a copy of a current, signed federally-approved indirect cost rate agreement. Applicants that have never received a federally-approved indirect cost rate may elect to charge a de minimis rate of 10% of modified total direct costs which may be used indefinitely. These agreements will list the applicable costs also known as a base that can be applied to Indirect.
A79: Indirect Expenses | B79: Expenses Applied to Indirect | C79: Contract Indirect Rate | D79: Description | E79: Total Cash Expenditures
A80: Example: Indirect Expenses | B80: 7046.25 | C80: 0.21 | D80: Please describe a breakdown of all costs to be covered with Indirect recoupment. | E80: =IF(B80="","",ROUND(ROUND(B80,4)*ROUND(C80,6),2)) -> 1479.71
A81: Example: Programmatic Indirect Expenses | B81: 10384.62 | C81: 0.1 | E81: =IF(B81="","",ROUND(ROUND(B81,4)*ROUND(C81,6),2)) -> 1038.46
E82: =IF(B82="","",ROUND(ROUND(B82,4)*ROUND(C82,8),2)) -> 
E83: =IF(B83="","",ROUND(ROUND(B83,4)*ROUND(C83,8),2)) -> 
A84: Subtotal: | E84: =SUM(OFFSET(Indirect,5,4):OFFSET(GrandTotal,-3,4)) -> 0
A86: Grand Total: | E86: =ROUND(SUM(E14+E24+E84+E34+E44+E54+E64+E74),2) -> 0
